Cogmind - Beta 16 @@@ ROGUE MODE // 2025.10.22 @ 07:16:30 Player: Runagate Result: Destroyed by Y-54 Guardian with Gatling Laser Performance ------------- Evolutions (4) 2000 Regions Visited (5) 1000 Robots Destroyed (46) 230 Value Destroyed (946) 946 Prototype IDs (13) 260 Alien Tech Used (0) 0 Bonus (300) 300 TOTAL SCORE: 4736 Bonus ------- Registered with UFD 300 Cogmind --------- Core Integrity 0/850 Matter 300/300 Energy 100/100 System Corruption 2% Temperature Cool (12) Movement Core (350) Ox6 Location -6/Factory Parts ------- > --- POWER (1) -------- (None) > --- PROPULSION (4) --- (None) > --- UTILITY (6) ------ Large Storage Unit Enhanced Optical Array A0-MCA's Component Scanner > --- WEAPON (4) ------- (None) > --- INVENTORY (15) --- Armored Leg Improved Sensor Array Improved Signal Interpreter Peak State ------------ > --- POWER ------------ Light Ion Engine Light Fission Core > --- PROPULSION ------- Light Treads Improved Treads Improved Treads Medium Treads > --- UTILITY ---------- Disposable Heat Sink Large Storage Unit A0-MCA's Component Scanner Rainbow Chip > --- WEAPON ----------- Powered Cannon Junk Cannon > --- INVENTORY -------- Seismic Detector Particle Cannon Autogun Shotgun Battle Rifle Flamer Piercing Trap [Rating: 67] Favorites ----------- Power Subdweller Power Source Engine Subdweller Power Source Power Core Light Fission Core Propulsion Light Treads Treads Light Treads Leg Makeshift Leg Wheel Subdweller Monowheel Utility Large Storage Unit Device Disposable Heat Sink Storage Large Storage Unit Processor Rainbow Chip Weapon Powered Cannon Energy Cannon Powered Cannon Ballistic Gun Assault Rifle Ballistic Cannon Battle Cannon Special Weapon Junk Cannon Build | -11 -10 -10 -9 -9 -6 ------- Run | Yrd Mat Sub Rec Scr Fac Slots Evolved 8 | . . . . . 8 Power . | . . . . . . Propulsion 2 | . . . . . 2 Utility 4 | . . . . . 4 Weapon 2 | . . . . . 2 Parts Attached 55 | 13 2 21 4 4 11 Power 9 | 1 . 4 1 2 1 Engine 7 | 1 . 4 1 . 1 Core 2 | . . . . 2 . Reactor . | . . . . . . Propulsion 19 | 4 . 7 3 2 3 Treads 8 | 2 . . 3 2 1 Leg 4 | 2 . 2 . . . Wheel 7 | . . 5 . . 2 Hover . | . . . . . . Flight . | . . . . . . Utility 14 | 5 2 2 . . 5 Device 6 | 3 . 1 . . 2 Storage 4 | 2 2 . . . . Processor 4 | . . 1 . . 3 Hackware . | . . . . . . Protection . | . . . . . . Artifact . | . . . . . . Weapon 13 | 3 . 8 . . 2 Energy Gun . | . . . . . . Energy Cannon 4 | . . 4 . . . Ballistic Gun 6 | 3 . 2 . . 1 Ballistic Cannon 1 | . . 1 . . . Launcher . | . . . . . . Special Weapon 2 | . . 1 . . 1 Impact Weapon . | . . . . . . Slashing Weapon . | . . . . . . Piercing Weapon . | . . . . . . Special Melee Weapon . | . . . . . . Unidentified Prototypes 1 | . . . . . 1 Parts Lost 25 | . . 7 . . 18 Power 6 | . . 3 . . 3 Propulsion 9 | . . 3 . . 6 Utility 5 | . . . . . 5 Weapon 5 | . . 1 . . 4 Highest Loss Streak 8 | . . 4 . . 8 To Critical Strikes . | . . . . . . Average Backups 6 | 3 3 6 8 9 1 Power . | . 1 . . . . Propulsion . | . . . . 1 . Utility 1 | 1 1 2 2 1 . Weapon 3 | . 1 3 6 5 . Tool/Special . | . . . . . . Unused Backups 10 | 1 1 1 1 1 5 Power . | . . . . . . Propulsion 4 | . . 1 1 1 1 Utility 4 | 1 1 . . . 2 Weapon 2 | . . . . . 2 Tool/Special . | . . . . . . Average Slot Usage (%) 84 | . 100 93 80 88 53 Engine 12 | . 14 12 14 15 4 Core 2 | . . . . 6 . Treads 15 | . 28 10 20 22 5 Leg 1 | . . 3 1 . . Wheel 4 | . . 9 . . 4 Device 10 | . 14 10 11 11 6 Storage 10 | . 14 11 11 11 5 Processor 10 | . . 8 11 11 16 Energy Cannon 9 | . . 11 11 11 1 Ballistic Gun 3 | . 28 7 . . . Ballistic Cannon 2 | . . 5 . . . Peak Build Rating 67 | 7 7 42 42 45 67 Average Rating 32 | 6 7 24 38 43 47 On Entrance 23 | . 7 7 42 39 45 Avg Prop Armor Cover (%) 10 | . . 10 . . . Naked Turns . | . . . . . . Heaviest Build 54 | 19 30 46 38 40 54 Greatest Support 94 | 40 40 60 46 51 94 Greatest Overweight (x) 13 | . . 11 1 . 13 Average Overweight (x) . | . . . . . 1 Largest Inventory Capacity 15 | 8 15 15 15 15 15 Average Capacity 14 | 7 10 15 15 15 15 Most Carried 15 | 5 6 15 15 15 11 Average Carried 9 | 3 3 10 14 14 1 Final Capacity 15 | 8 15 15 15 15 15 Final Carried 15 | 4 3 15 15 12 3 Class Distribution -------------------- 65% | Mutant 23% | Scavenger-Mutant 10% | Gunner Dominant Class ---------------- Mutant | -10/Materials Scavenger-Mutant | -10/Subcaves Mutant | -9/Recycling Mutant | -9/Scraptown Mutant | -6/Factory Resources | -11 -10 -10 -9 -9 -6 ----------- Run | Yrd Mat Sub Rec Scr Fac Matter Collected 1416 | 490 38 485 85 78 240 Remotely . | . . . . . . Salvage Created 1634 | 323 95 537 186 . 493 Parts 101 | 32 3 39 11 . 16 Haulers Intercepted . | . . . . . . Recyclers Shooed 1 | . 1 . . . . Parts Field Recycled . | . . . . . . Retrieved Matter . | . . . . . . Parts Self-Destructed 13 | . . 13 . . . Prevented . | . . . . . . Parts Restored . | . . . . . . Kills | -11 -10 -10 -9 -9 -6 ------- Run | Yrd Mat Sub Rec Scr Fac Combat Hostiles Destroyed 26 | . . 16 2 . 8 Guns 7 | . . 4 . . 3 Cannons 17 | . . 12 2 . 3 Classes Destroyed 8 | 3 . 3 2 . . Worker 4 | 3 1 . . . . Builder 1 | . . . 1 . . Tunneler 9 | 9 . . . . . Recycler 6 | 1 1 . 2 . 2 Swarmer 12 | . . 5 1 . 6 Protector 1 | . . . 1 . . Sentry 3 | . . 1 . . 2 Subdweller 10 | . . 10 . . . Best Kill Streak 4 | 2 2 4 2 . 2 Combat Bots Only 4 | . . 4 1 . 2 Max Kills in Single Turn 1 | 1 1 1 1 . 1 Gunslinging . | . . . . . . Exploded . | . . . . . . Melee . | . . . . . . Uniques/NPCs Destroyed . | . . . . . . Combat | -11 -10 -10 -9 -9 -6 -------- Run | Yrd Mat Sub Rec Scr Fac Hostile Shots Fired 459 | . . 85 1 . 373 Missed 141 | . . 22 . . 119 Hits 318 | . . 63 1 . 254 Projectile 318 | . . 63 1 . 254 AOE 6 | . . 6 . . . Critical Strikes 2 | . . 1 . . 1 Damage Taken 3833 | . . 1240 10 . 2583 Core 1093 | . . 239 . . 854 Absorbed by Shields . | . . . . . . Core Remaining (%) 52 | 100 . . . 4 . Volleys Fired 182 | 22 3 92 10 . 55 Largest 3 | 2 2 3 1 . 2 Hottest 160 | 40 40 160 40 . 48 Shots Fired 311 | 44 6 188 10 . 63 Gun 124 | 44 6 45 . . 29 Cannon 153 | . . 140 10 . 3 Launcher . | . . . . . . Special 34 | . . 3 . . 31 Kinetic 160 | 44 6 81 . . 29 Thermal 120 | . . 107 10 . 3 Explosive . | . . . . . . Electromagnetic . | . . . . . . Impact 31 | . . . . . 31 Robot Hit Streak 16 | 8 3 16 4 . 8 Robot Miss Streak 3 | 1 2 2 1 . 3 Penetration Max . | . . . . . . Secondary Targets . | . . . . . . Shots Hit Robots 145 | 28 3 71 7 . 36 Core Hits 57 | 15 3 21 4 . 14 Critical Kills 3 | 1 . . 1 . 1 Critical Parts Destroyed . | . . . . . . Critical Strikes 4 | 1 . 1 1 . 1 Meltdown 1 | . . . 1 . . Destroy 1 | 1 . . . . . Blast 1 | . . 1 . . . Smash 1 | . . . . . 1 Melee Attacks . | . . . . . . Impact . | . . . . . . Slashing . | . . . . . . Piercing . | . . . . . . Sneak Attacks . | . . . . . . Combat Hostiles . | . . . . . . Follow-up Attacks . | . . . . . . Damage Inflicted 4091 | 362 39 1675 338 . 1677 Guns 958 | 355 39 315 . . 249 Cannons 1689 | . . 1360 329 . . Explosions . | . . . . . . Melee . | . . . . . . Ramming 51 | 7 . . 9 . 35 Kinetic 1239 | 355 39 596 . . 249 Thermal 1408 | . . 1079 329 . . Explosive . | . . . . . . Electromagnetic . | . . . . . . Impact 1393 | . . . . . 1393 Slashing . | . . . . . . Piercing . | . . . . . . Highest Corruption 2 | . 2 2 2 . 2 Average Corruption 2 | . 2 2 2 . 2 Corruption Purged . | . . . . . . Corruption Blocked . | . . . . . . Effects 43 | . 1 30 12 . . Message Errors 15 | . . 12 3 . . Matter Fused 8 | . . 6 2 . . Heat Flow Errors 3 | . . 3 . . . Energy Discharges 2 | . 1 . 1 . . Parts Fused 2 | . . 1 1 . . Data Loss (minor) 7 | . . 3 4 . . Misfires 4 | . . 4 . . . Alerts 1 | . . . 1 . . Weapon Failures 1 | . . 1 . . . Overload Shots . | . . . . . . Overflow Damage 387 | . . 42 44 . 301 Projectiles 387 | . . 42 44 . 301 Explosions . | . . . . . . Melee . | . . . . . . Knockbacks 11 | . . 6 . . 5 Impact 5 | . . . . . 5 Kinetic 6 | . . 6 . . . Secondary . | . . . . . . Self-Inflicted Damage 16 | . . . . . 16 Shots . | . . . . . . Rammed 14 | 1 . . 1 . 12 Targets Rammed 14 | 1 . . 1 . 12 Kicked . | . . . . . . Crushed . | . . . . . . Highest Temperature 183 | . . 183 90 . 16 Average Temperature 43 | . . 44 34 . 16 Received Heat Transfer 624 | . . 264 . . 360 Siege Activations . | . . . . . . Martial Activations . | . . . . . . Shielding Activations . | . . . . . . Robots Disrupted . | . . . . . . Combat Hostiles . | . . . . . . Robots Corrupted 4 | . . . . . 4 Combat Hostiles 2 | . . . . . 2 Parts Fried 7 | . . . . . 7 Impact Corruptions 8 | . . . . . 8 Robots Melted 1 | . . . 1 . . Combat Hostiles . | . . . . . . Parts Melted 4 | . . 2 2 . . Heat Transferred 1443 | . . 1443 . . . Parts Sabotaged . | . . . . . . Parts Stolen . | . . . . . . Parts Stripped . | . . . . . . Power Chain Reactions . | . . . . . . Alert | -11 -10 -10 -9 -9 -6 ------- Run | Yrd Mat Sub Rec Scr Fac Maximum Alert Level . | . . . . . . Low Security (%) 100 | 100 100 . 100 . 100 Level 1 . | . . . . . . Level 2 . | . . . . . . Level 3 . | . . . . . . Level 4 . | . . . . . . Level 5 . | . . . . . . High Security . | . . . . . . Max Security . | . . . . . . Peak Influence 129 | 10 5 . 94 . 129 Initial 94 | . . . 94 . . Average 32 | 1 . . 58 . 44 Influence Increases 926 | 65 15 240 155 . 451 Destroy 0b10 Robot/C 300 | . . 120 20 . 160 Destroy 0b10 Robot/NC 105 | 65 10 . 20 . 10 Destroy Leader 30 | . . . . . 30 Successful Hack 13 | . 5 . 8 . . Select Force Hacks 90 | . . . 90 . . Disable Machine 45 | . . . 15 . 30 Destroy Structure 13 | . . . 2 . 11 Lose Combat Pursuer 330 | . . 120 . . 210 Influence Decreases 926 | 65 15 42 299 54 451 Entered New Map 158 | . . . 104 54 . Time Decay 665 | 65 15 42 195 . 348 Lost Part 103 | . . . . . 103 Squads Dispatched 2 | . . . . . 2 Investigation . | . . . . . . Extermination 1 | . . . . . 1 Reinforcement . | . . . . . . Assault . | . . . . . . Garrison 1 | . . . . . 1 Intercept . | . . . . . . Searches Triggered . | . . . . . . Construction Impeded . | . . . . . . Haulers Reinforced . | . . . . . . Active Scanning Responses . | . . . . . . Cargo Convoy Interrupts . | . . . . . . Stealth | -11 -10 -10 -9 -9 -6 --------- Run | Yrd Mat Sub Rec Scr Fac Distress Signals 1 | . . . 1 . . Communications Jammed . | . . . . . . Distress Signals . | . . . . . . Times Spotted 44 | . . 21 2 . 21 Peak Tracking Total 5 | . . 4 2 . 5 Tactical Retreats 10 | . . 3 . . 7 Traps | -11 -10 -10 -9 -9 -6 ------- Run | Yrd Mat Sub Rec Scr Fac Traps Triggered 1 | . 1 . . . . Indirectly . | . . . . . . Trap Hack Attempts . | . . . . . . Triggered . | . . . . . . Disarmed . | . . . . . . Reprogrammed . | . . . . . . Reused . | . . . . . . Traps Extracted . | . . . . . . Installed . | . . . . . . Triggered . | . . . . . . Most Traps Carried 1 | . . 1 1 1 1 Machines | -11 -10 -10 -9 -9 -6 ---------- Run | Yrd Mat Sub Rec Scr Fac Machines Disabled 4 | . . 1 1 . 2 Max in Single Turn 1 | . . 1 1 . 1 Machines Repaired . | . . . . . . Machines Dismantled . | . . . . . . Machines Sabotaged . | . . . . . . Overloaded Fab Kills . | . . . . . . Hacking | -11 -10 -10 -9 -9 -6 --------- Run | Yrd Mat Sub Rec Scr Fac Machines Accessed 9 | . 1 2 4 2 . Terminals 2 | . 1 . 1 . . Fabricators . | . . . . . . Repair Stations . | . . . . . . Recycling Units 3 | . . . 3 . . Scanalyzers . | . . . . . . Garrison Access . | . . . . . . Total Hacks 32 | . 4 13 4 11 . Successful 31 | . 3 13 4 11 . Failed 1 | . 1 . . . . Catastrophic . | . . . . . . Database Lockouts . | . . . . . . Manual 8 | . 4 . 4 . . Terminals 5 | . 4 . 1 . . Fabricators . | . . . . . . Repair Stations . | . . . . . . Recycling Units 3 | . . . 3 . . Scanalyzers . | . . . . . . Garrison Access . | . . . . . . Terminal Hacks 25 | . . 13 1 11 . Record 16 | . . 12 . 4 . Robot Analysis 7 | . . . . 7 . Branch Access Points 1 | . . . 1 . . Proto ID Catalog 1 | . . 1 . . . Fabricator Hacks . | . . . . . . Repair Station Hacks . | . . . . . . Recycling Unit Hacks . | . . . . . . Scanalyzer . | . . . . . . Garrison Access Hacks . | . . . . . . Unauthorized Hacks 6 | . 3 . 3 . . Terminals 3 | . 3 . . . . Botnet 1 | . 1 . . . . Operators 1 | . 1 . . . . Skim 1 | . 1 . . . . Fabricators . | . . . . . . Repair Stations . | . . . . . . Recycling Units 3 | . . . 3 . . Tunnel 3 | . . . 3 . . Scanalyzers . | . . . . . . Garrison Access . | . . . . . . Data Cores Recovered . | . . . . . . Used . | . . . . . . Hacking Detections 2 | . 1 . 1 . . Full Trace Events . | . . . . . . Feedback Events . | . . . . . . Feedback Blocked . | . . . . . . Robot Schematics Acquired . | . . . . . . Robots Built . | . . . . . . Authchips . | . . . . . . Time . | . . . . . . Total Robot Build Rating . | . . . . . . Part Schematics Acquired . | . . . . . . Parts Built . | . . . . . . Authchips . | . . . . . . Time . | . . . . . . Total Part Build Rating . | . . . . . . Part Studies Acquired . | . . . . . . Parts Repaired . | . . . . . . Time . | . . . . . . Parts Recycled . | . . . . . . Recycled Matter . | . . . . . . Retrieved Matter . | . . . . . . Retrieved Components . | . . . . . . Parts Scanalyzed . | . . . . . . Part Schematics Acquired . | . . . . . . Parts Damaged . | . . . . . . Bothacking | -11 -10 -10 -9 -9 -6 ------------ Run | Yrd Mat Sub Rec Scr Fac Used RIF Installer . | . . . . . . Robots Hacked . | . . . . . . Non-combat . | . . . . . . Combat . | . . . . . . Robot Hacks Applied . | . . . . . . Relay Couplers Released . | . . . . . . Fabnet Peak Effective % . | . . . . . . Robots Rewired . | . . . . . . Allies Hacked . | . . . . . . Hacks Repelled . | . . . . . . Allies | -11 -10 -10 -9 -9 -6 -------- Run | Yrd Mat Sub Rec Scr Fac Total Allies . | . . . . . . Largest Group . | . . . . . . Highest-Rated Group . | . . . . . . Highest-Rated Ally . | . . . . . . Total Orders . | . . . . . . Ally Attacks . | . . . . . . Total Damage . | . . . . . . Kills . | . . . . . . Allies Corrupted . | . . . . . . Allies Melted . | . . . . . . Intel | -11 -10 -10 -9 -9 -6 ------- Run | Yrd Mat Sub Rec Scr Fac Active Infowar (turns) 1488 | 436 245 479 . . 328 Optics 263 | . . . . . 263 Seismic 1215 | 436 245 479 . . 55 Triangulation 228 | . . . . . 228 Robot Analysis Total 7 | . . . . 7 . Derelict Logs Recovered 5 | . . 3 . 2 . Drone Launches . | . . . . . . Drone Recoveries . | . . . . . . Exploration | -11 -10 -10 -9 -9 -6 ------------- Run | Yrd Mat Sub Rec Scr Fac Turns Passed 6739 | 520 245 2281 430 2196 1067 Spaces Moved 3684 | 146 144 1330 250 1355 459 Core 53 | 4 . 5 . . 44 Treads 2418 | 130 144 448 237 1355 104 Legs 156 | 12 . 131 13 . . Wheels 1057 | . . 746 . . 311 Hover . | . . . . . . Flight . | . . . . . . Fastest Speed 50 | 50 160 110 140 160 100 Average Speed 155 | 153 160 142 159 160 178 Slowest Speed 700 | 160 160 600 240 160 700 Overloaded Moves . | . . . . . . Propulsion Burnouts . | . . . . . . Robots Hopped . | . . . . . . Potential Cave-ins . | . . . . . . Cave-ins Triggered . | . . . . . . Exploration Rate (%) 40 | 8 17 73 46 87 10 Regions Visited 5 Branch Regions 3 Pre-discovered Areas 5 | . . 2 3 . . Known Exits Taken 1 | . . 1 . . . Unknown Exits Taken 4 | 1 1 . 1 1 . Scrap Searched 9 | . . 2 . 7 . Spaces Dug 3 | . . 2 . . 1 Terrain Destroyed 27 | . . 14 2 . 11 Melee . | . . . . . . Projectile 27 | . . 14 2 . 11 AOE . | . . . . . . Terrain Rammed . | . . . . . . Walls Destroyed . | . . . . . . Machines Disabled . | . . . . . . Actions | -11 -10 -10 -9 -9 -6 --------- Run | Yrd Mat Sub Rec Scr Fac Total 4373 | 390 154 1533 274 1390 632 Wait 350 | 202 1 56 5 11 75 Move 3679 | 145 143 1329 249 1354 459 Hop . | . . . . . . Pick Up 34 | 2 1 17 2 9 3 Fast Attach 21 | 7 . 7 1 . 6 Attach 17 | . . 5 . . 12 Detach 8 | . . 3 . . 5 Swap 34 | 9 2 14 3 5 1 Drop 34 | 2 4 10 3 11 4 Fire 182 | 22 3 92 10 . 55 Melee . | . . . . . . Ram 12 | . . . . . 12 Kick . | . . . . . . Crush 2 | 1 . . 1 . . Escape Stasis . | . . . . . . Rewire . | . . . . . . Trap . | . . . . . . Miscellaneous . | . . . . . . Route ------- -11/Scrapyard -10/Materials (discovered 2 exits: [*Min] / *Sub) -10/Subcaves (discovered 2 exits: [*Mat] / *Rec) -9/Recycling (discovered 2 exits: [*Fac] / *Scr) -9/Scraptown (discovered 2 exits: [*Fac x2]) -6/Factory History --------- Turn | Location | Event 5 | -11/Scrapyard | Discovered new exit (range 16) 521 | -11/Scrapyard | Entered Materials 521 | -10/Materials | Discovered new exit (range 14) 522 | -10/Materials | Build established: Mutant 728 | -10/Materials | Discovered new exit (range 11) 766 | -10/Materials | Entered Subcaves 800 | -10/Subcaves | Shifting Twisted Machinery released Battle Cannon 854 | -10/Subcaves | Visited Clippyterm 859 | -10/Subcaves | Learned location of Extension (-6) 1216 | -10/Subcaves | Visited 4L-MR0's lab 1220 | -10/Subcaves | Identified exit to Recycling 1246 | -10/Subcaves | Found Rainbow Chip 1247 | -10/Subcaves | Attached Rainbow Chip, gained temporary slots: Power, Propulsion, Utility, Weapon 1578 | -10/Subcaves | Build established: Gunner 1711 | -10/Subcaves | Shifting Twisted Machinery released Battle Rifle 1722 | -10/Subcaves | Shifting Twisted Machinery released Mak. Laser 1752 | -10/Subcaves | A Subdweller sparked back to life 1752 | -10/Subcaves | A Subdweller sparked back to life 1786 | -10/Subcaves | Found Powered Cannon 1974 | -10/Subcaves | Build established: Scavenger-Mutant 2014 | -10/Subcaves | Learned location of 1 exit from Materials 2077 | -10/Subcaves | Lost 4 parts (1p2n1w) 2090 | -10/Subcaves | A swath of the cavern ceiling suddenly collapsed 2388 | -10/Subcaves | Core integrity fell below 50% 2825 | -10/Subcaves | Core integrity fell below 20% 2889 | -10/Subcaves | Discovered new exit (range 5) 3024 | -10/Subcaves | Attached Powered Cannon, gained temporary slot: Power 3047 | -10/Subcaves | Entered Recycling 3351 | -9/Recycling | Discovered new exit (range 4) 3381 | -9/Recycling | Build established: Mutant 3437 | -9/Recycling | Scanned before Scraplab entrance 3459 | -9/Recycling | Entered Scraplab 3473 | -9/Recycling | Discovered new exit (range 3) 3477 | -9/Recycling | Entered Scraptown 3477 | -9/Scraptown | System corruption cleaned by C-Scrubber 3763 | -9/Scraptown | Discovered new exit (range 11) 3853 | -9/Scraptown | Scanned Subdweller tech in exchange for log data 3861 | -9/Scraptown | Learned Research security intel 3863 | -9/Scraptown | Learned Research trap positions 3938 | -9/Scraptown | Visited Red Mages 3983 | -9/Scraptown | Visited Symbiants 4072 | -9/Scraptown | Visited Artisan Demo Area 4188 | -9/Scraptown | Visited IN-MT5's Study 4237 | -9/Scraptown | Visited CPS Storage 4261 | -9/Scraptown | Visited Bundlers 4685 | -9/Scraptown | Visited TADAMA 4716 | -9/Scraptown | Visited UFD Registry 4716 | -9/Scraptown | Registered with UFD as "Ioncell" 4755 | -9/Scraptown | Visited Junk Cannon Lab 4775 | -9/Scraptown | Found Prototype Special Weapon 4864 | -9/Scraptown | Visited Scrapoid Research Area 4920 | -9/Scraptown | Delivered Scrap Shield to a Scientist 5071 | -9/Scraptown | Visited Science Guys 5101 | -9/Scraptown | Visited DA-N13 Charitable Foundation 5116 | -9/Scraptown | Found DCF Scrap (28 items) 5172 | -9/Scraptown | Visited Scrap Suit Storage 5200 | -9/Scraptown | Visited Chapter 10 5229 | -9/Scraptown | Visited Analyses Database 5269 | -9/Scraptown | Visited A0-MCA Data Center 5279 | -9/Scraptown | Given a B rating by A0-MCA 5292 | -9/Scraptown | Found A0-MCA's Component Scanner 5494 | -9/Scraptown | Visited Abandonware Association 5526 | -9/Scraptown | Learned abandonware demo "TRNCOAT.EXE" 5526 | -9/Scraptown | Learned abandonware demo "POISON.EXE" 5662 | -9/Scraptown | Discovered new exit (range 5) 5673 | -9/Scraptown | Entered Factory 5673 | -6/Factory | Evolved 8 slots: Propulsion x2, Utility x4, Weapon x2 5675 | -6/Factory | Identified Junk Cannon 5841 | -6/Factory | Lost 3 parts (2p1n) 5989 | -6/Factory | Lost 8 parts (3n2u3w) 6410 | -6/Factory | Garrison activated, responded to threat 6690 | -6/Factory | Core integrity fell below 50% 6725 | -6/Factory | Core integrity fell below 20% 6740 | -6/Factory | Destroyed by Y-54 Guardian with Gatling Laser Last Messages --------------- 06701_ U-05 Engineer builds a Wall. 06702_ Com. Wheel destroyed. 06702_ Slammed into Y-54 Guardian. 06705_ Imp. Ion Engine destroyed. 06706_ Slammed into Y-54 Guardian. 06708_ ALERT: Cargo convoy en route, clear transfer corridor. 06712_ Slammed into Y-54 Guardian. 06713_ Com. Wheel destroyed. 06713_ System corrupted by crushing effect (+2). 06717_ Slammed into Y-54 Guardian. 06721_ Rainbow Chip destroyed. 06724_ Slammed into Y-54 Guardian. 06724_ Enh. Optical Array broken. 06724_ Destabilizing: Short circuit. 06727_ Slammed into Y-54 Guardian. 06734_ Triangulator destroyed. 06734_ Slammed into Y-54 Guardian. 06737_ Core Analyzer destroyed. 06738_ Slammed into Y-54 Guardian. Map ----- +----------------------------------------------------+ | ???????????????????##?? #????????# ## #??? | | ??????????????????????? #????????# ## #??? | | ??????????????????????? ????????## ## #??? | | ????????????????# ######### # #??? | | ????????????? # #??? | | ???????????????????????########## # #??? | | ????????????????????????????????## #??? | | ?????????????????????????????????# #??? | | ?????????????????????????????????# #??? | | ?????????????????????????????????# #??? | | ????????????????????????########## #??? | | ????????????????????????+ #??? | | ????????????????????????# #??? | | ????????????????????????# #??? | | ????????????????????????# #??? | | ????????????????????????# ########+####??? | | ????????????????????????# #??# #????? | | ????????????????????????# #??# """ #????? | | ????????????????????????# #??# """ #????? | | ????????????????????????# ##?# """ #????? | | ??????????????????????### #### #????? | | ??????????????????????# ## """ #????? | | ???????????????????#### %## """ #????? | | ???????????????????+ %%## """ #????? | | ???????????????????#### Y %## #????? | | ??????????????????????# @%%## """ #????? | | ??????????????????????######## """ #????? | | ?????????????????????????????# """ #????? | | ?????????????????????????????# #????? | | ?????????????????????????????########????? | | ?????????????????????????????????????????? | | ?????????????????????????????????????????? | | ?????????????????????????????????????????? | | ?????????????????????????????????????????? | | ?????????????????????????????????????????? | | ?????????????????????????????????????????? | | ?????????????????????????????????????????? | | ?????????????????????????????????????????? | | ?????????????????????????????????????????? | | ?????????????????????????????????????????? | | | | | | | | | | | | | | | | | | | | | +----------------------------------------------------+ Best States ------------- Heat Dissipation 51 Coolant Potential 50 Energy Generation 25 Energy Capacity 350 Matter Stores 300 Matter Capacity 300 Sight Range 22 Terrain Scan Density 10 Evasion (%) 55 Core Analysis 6 Recoil Reduction 4 Item Schematics ----------------- None Robot Schematics ------------------ None Fabricated ------------ Nothing Repaired ---------- Nothing Studied --------- None Alien Tech Used ----------------- None Achievements -------------- Civilization 2243 Mistaken Identity Spot Them First You May Approach The Wall Challenges ------------ None Game ------ Seed NuclearThermicBiocell Manual? 0 Play Time 00:35:32 Cumulative 211.8 hours Start 2025.10.22 @ 06:41:39 End 2025.10.22 @ 07:16:30 Sessions 1 Manual Loads 0 Difficulty Rogue Special Mode None Game No. 346 Rogue 344 Adventurer 0 Explorer 2 Win Type - Total 3 Types 2/0/0/1/0/0/0/0/0/0 Lore% 53 Gallery% 60 Achievement% 34 Wizard Run 0 Options --------- Layout 2 ASCII 0 Keyboard 1 Movement Arrows Keybinds 0 Fullscreen 1 Font 28/SmallcapsGlow Map View 50x49 Zoom Use 0% Tactical HUD 1 Map Filters NONE Filters NONE Steam 1 RUN: d3e90394-3c77-47ec-bf29-38b295c94bca